Cogmind - Beta 10 @@@ ROGUE MODE // 2020.09.17 @ 12:10:38 Player: Finestep Result: Destroyed by G-73 Enforcer with Phase Gun Performance ------------- Evolutions (8) 4000 Regions Visited (25) 5000 Robots Destroyed (414) 2070 Value Destroyed (19342) 19342 Prototype IDs (55) 1100 Alien Tech Used (3) 600 Bonus (9564) 9564 TOTAL SCORE: 41676 Bonus ------- High Alert Combat Kills 4189 Follower Combat Kills 2766 Entered Garrisons 600 Used RIF Installer 1500 Met Data Miner 300 Found Hidden Lab 3000 Friendly Fire -2791 Cogmind --------- Core Integrity 0/1450 Matter 224/300 Energy 95/100 System Corruption 25% Temperature Cool (0) Movement Core (50) Location -2/Research Parts ------- > --- POWER (2) -------- (None) > --- PROPULSION (4) --- Advanced Myomer Leg > --- UTILITY (15) ----- Experimental Sensor Array System Shield Relay Coupler [Grunt] (20) Relay Coupler [Demolisher] (28) Relay Coupler [Behemoth] (10) > --- WEAPON (3) ------- (None) > --- INVENTORY (4) ---- Improved Stasis Canceller Gamma Bomb Array Peak State ------------ > --- POWER ------------ Enhanced Fission Core Quantum Reactor > --- PROPULSION ------- Advanced Myomer Leg Centrium Leg Centrium Leg Centrium Leg > --- UTILITY ---------- Advanced Heat Sink Advanced Heat Sink Advanced Heat Sink Advanced Matter Compressor Experimental Signal Interpreter Advanced Targeting Computer Experimental Targeting Computer Advanced Target Analyzer Improved Armor Integrity Analyzer Recoil Nullifier Advanced Transmission Jammer AEGIS Remote Shield Experimental Hacking Suite Deep Network Scanner System Restoration Module > --- WEAPON ----------- Guided Remote Datajack Enhanced Force Lance Enhanced Force Lance > --- INVENTORY -------- Advanced Shield Generator Warp Cannon Gamma Bomb Array Advanced Remote Datajack [Rating: 177] Favorites ----------- Power Reinforced Deuterium Engine Engine Reinforced Deuterium Engine Power Core Reinforced Fission Core Reactor Light Antimatter Reactor Propulsion Light Treads Treads Light Treads Leg Centrium Leg Wheel Armored Huge Wheel Hover Unit Cooled Gravmag System Flight Unit Diametric Drive Utility High-capacity Storage Unit Device Advanced Heat Sink Storage High-capacity Storage Unit Processor Advanced Targeting Computer Hackware Relay Coupler [NC] Protection Improved Medium Armor Plating Weapon Neutron Cannon Energy Gun Cooled Pulse Rifle Energy Cannon Neutron Cannon Ballistic Gun Enhanced Autogun Ballistic Cannon Improved Light Cannon Launcher Guided Missile Launcher Special Weapon Improved Remote Datajack Impact Weapon Hammer Slashing Weapon Great Axe Piercing Weapon Enhanced Force Lance Special Melee Weapon Datajack Build | -11 -10 -10 -9 -9 -9 -8 -8 -7 -7 -7 -6 -6 -6 -6 -6 -5 -5 -5 -4 -3 -3 -3 -2 -2 -2 ------- Run | Scr Mat Min Mat Sto Gar Mat Gar Fac Low Zio Pro Fac Low Low Dat Pro Fac Ext Fac Res Arm Lab Res Gar Res Slots Evolved 16 | . . . 2 . . 2 . 2 . . . 2 . . . . 2 . 2 2 . . 2 . . Power . | . . . . . . . . . . . . . . . . . . . . . . . . . . Propulsion 2 | . . . 1 . . . . 1 . . . . . . . . . . . . . . . . . Utility 13 | . . . 1 . . 2 . 1 . . . 2 . . . . 2 . 2 1 . . 2 . . Weapon 1 | . . . . . . . . . . . . . . . . . . . . 1 . . . . . Parts Attached 605 | 7 12 3 11 35 16 12 30 33 10 6 7 26 9 21 11 20 84 58 31 54 71 10 13 9 6 Power 45 | 1 1 1 1 4 . 1 2 2 . . . . . 2 . 1 10 3 2 6 7 . 1 . . Engine 15 | 1 1 1 . 4 . 1 . 1 . . . . . 1 . 1 3 . 1 . . . . . . Core 18 | . . . 1 . . . 2 1 . . . . . . . . 7 2 . . 5 . . . . Reactor 12 | . . . . . . . . . . . . . . 1 . . . 1 1 6 2 . 1 . . Propulsion 106 | 2 3 1 3 11 7 3 7 5 . . . 1 . 1 2 5 16 16 3 6 10 . 3 . 1 Treads 59 | 2 3 1 3 11 5 3 3 2 . . . . . . . 3 3 10 3 5 . . 2 . . Leg 39 | . . . . . . . 3 1 . . . . . 1 2 2 13 5 . 1 9 . 1 . 1 Wheel 6 | . . . . . 2 . 1 2 . . . 1 . . . . . . . . . . . . . Hover 1 | . . . . . . . . . . . . . . . . . . 1 . . . . . . . Flight 1 | . . . . . . . . . . . . . . . . . . . . . 1 . . . . Utility 224 | 2 4 . 2 3 1 5 8 11 5 3 4 16 6 6 4 7 26 16 17 24 33 6 6 4 5 Device 122 | . . . . . . . 6 2 2 3 2 3 4 3 1 6 15 11 10 17 21 5 6 1 4 Storage 12 | 2 4 . . . 1 2 . . . . . . . . . . . 2 . . 1 . . . . Processor 13 | . . . . . . . . 1 . . . 3 . . . . 3 . 3 1 2 . . . . Hackware 24 | . . . . . . . 2 3 2 . . 4 . . . . 3 . 2 . 3 1 . 3 1 Protection 53 | . . . 2 3 . 3 . 5 1 . 2 6 2 3 3 1 5 3 2 6 6 . . . . Artifact . | . . . . . . . . . . . . . . . . . . . . . . . . . . Weapon 230 | 2 4 1 5 17 8 3 13 15 5 3 3 9 3 12 5 7 32 23 9 18 21 4 3 5 . Energy Gun 13 | . . . . . . . . 2 1 1 1 . . 1 . 2 . . . 3 1 1 . . . Energy Cannon 67 | . . . . . 1 1 4 6 . . 1 . 2 5 2 1 13 11 5 9 2 1 1 2 . Ballistic Gun 45 | 2 2 1 1 3 2 . 3 2 1 . . 6 . 2 . 3 11 . . 1 5 . . . . Ballistic Cannon 27 | . 1 . 4 10 3 2 5 . . . . . . . . . . 2 . . . . . . . Launcher 34 | . . . . 4 2 . . 2 1 2 1 . 1 2 1 . 3 . 2 4 8 . . 1 . Special Weapon 27 | . . . . . . . . 3 2 . . 3 . . . 1 2 6 2 1 2 2 1 2 . Impact Weapon 1 | . 1 . . . . . . . . . . . . . . . . . . . . . . . . Slashing Weapon 2 | . . . . . . . . . . . . . . 1 1 . . . . . . . . . . Piercing Weapon 12 | . . . . . . . . . . . . . . . 1 . 3 4 . . 3 . 1 . . Special Melee Weapon 2 | . . . . . . . 1 . . . . . . 1 . . . . . . . . . . . Unidentified Prototypes 31 | . . . . 3 . . . . . 3 . . . 1 1 . 3 6 1 2 4 6 1 . . Parts Lost 123 | . . 1 . 2 1 5 8 1 . . . 5 1 1 1 4 43 7 2 11 20 . 8 2 . Power 18 | . . 1 . . . 1 2 . . . . . . . . 1 10 . . . 1 . 2 . . Propulsion 23 | . . . . 1 . 2 2 . . . . 1 . 1 . 1 9 2 . 2 . . 2 . . Utility 47 | . . . . 1 . 1 1 . . . . 3 . . . . 14 3 2 4 14 . 4 . . Weapon 35 | . . . . . 1 1 3 1 . . . 1 1 . 1 2 10 2 . 5 5 . . 2 . Highest Loss Streak 7 | . . 1 . 2 1 3 3 1 . . . 2 1 1 1 3 6 3 2 3 7 . 4 2 . Average Slot Usage (%) 91 | . 99 99 100 98 100 98 96 88 84 78 84 85 84 85 81 97 90 98 94 92 90 98 89 7 23 Engine 4 | . 14 13 . 9 11 9 2 . 7 7 7 6 6 7 6 7 3 . 2 . . . . . . Core 3 | . . . 10 1 . . 6 6 . . . . . . . . 4 10 6 . 5 9 3 . . Reactor 1 | . . . . . . . . . . . . . . 1 6 4 . . 1 7 3 . 3 . . Treads 9 | . 27 28 33 31 30 11 21 5 . . . . . . . 4 . 5 15 12 . . . . . Leg 5 | . . . . . . . 1 4 . . . . . 3 6 18 18 15 . . 17 18 13 . 2 Wheel 4 | . . . . . 2 15 1 9 15 15 15 12 13 8 5 . . . . . . . . . . Device 7 | . . . . . . . 6 3 6 1 5 2 12 10 . 8 6 16 8 15 12 21 26 . 5 Storage 23 | . 28 28 22 22 27 35 36 30 30 30 30 26 26 25 25 25 22 22 17 13 7 4 3 . . Processor 8 | . . . . . . . . . . . . 7 13 12 12 12 12 14 18 18 19 22 17 . . Hackware 2 | . . . . . . . 1 4 4 . . 6 . . . . 7 . 3 4 5 8 6 6 14 Protection 3 | . . . 11 10 5 8 . 6 3 7 8 8 . 1 5 3 3 . 11 4 4 . . . . Energy Gun 1 | . . . . . . . . . 2 6 9 2 . 2 . . . . . 1 . . . . . Energy Cannon 3 | . . . . . 1 . 7 10 . . 3 . 2 7 9 5 4 3 9 10 2 . 1 1 . Ballistic Gun 5 | . 27 28 6 4 9 8 5 . 6 7 1 8 7 1 . 5 4 . . . 1 . . . . Ballistic Cannon 2 | . . . 15 17 10 8 4 . . . . . . . . . . . . . . . . . . Piercing Weapon 1 | . . . . . . . . . . . . . . . . . 1 2 . . 4 9 7 . . Naked Turns 54 | . . . . . . . . . . . . . . . . . . . . . . . 17 37 . Heaviest Build 212 | 14 73 74 86 90 115 157 154 157 158 163 178 176 176 183 183 175 188 208 212 184 188 73 92 12 9 Greatest Support 139 | 40 40 40 60 63 60 60 60 56 56 56 56 56 56 56 76 86 86 139 130 135 135 120 120 3 3 Greatest Overweight (x) 12 | 2 1 1 1 4 4 12 12 5 2 2 3 3 3 6 6 2 6 8 1 1 6 . 2 3 2 Average Overweight (x) 1 | . . 1 1 1 1 5 3 3 2 2 2 2 2 4 5 1 1 1 1 1 . . . . . Largest Inventory Capacity 36 | 8 20 20 20 20 28 36 36 36 36 36 36 36 36 36 36 36 36 36 36 28 28 4 4 4 4 Average Capacity 29 | 6 17 20 20 20 23 35 36 36 36 36 36 36 36 36 36 36 36 36 32 28 13 4 4 4 4 Most Carried 36 | 2 20 20 20 20 28 36 36 36 36 36 36 36 36 36 36 36 36 36 36 28 28 4 4 4 2 Average Carried 28 | 1 15 19 19 19 23 34 34 35 35 35 35 34 34 35 32 33 34 35 31 27 13 4 3 2 1 Final Capacity 36 | 8 20 20 20 20 28 36 36 36 36 36 36 36 36 36 36 36 36 36 28 28 4 4 4 4 4 Final Carried 36 | 2 20 20 19 20 28 33 36 35 35 35 36 36 33 36 35 36 36 36 28 28 4 4 4 2 2 Class Distribution -------------------- 53% | Hauler-Mutant 14% | Bothacker-Mutant 7% | Scavenger-Mutant 7% | Mutant 5% | Hacker-Mutant 3% | Hauler-Skirmisher Dominant Class ---------------- Mutant | -10/Materials Hauler-Mutant | -10/Mines Hauler-Mutant | -9/Materials Hauler-Mutant | -9/Storage Hauler-Mutant | -9/Garrison Hauler-Mutant | -8/Materials Bothacker-Mutant | -8/Garrison Bothacker-Mutant | -7/Factory Bothacker-Mutant | -7/Lower Caves Hauler-Mutant | -7/Zion Hauler-Mutant | -6/Proximity Caves Hauler-Mutant | -6/Factory Hauler-Mutant | -6/Lower Caves Hauler-Skirmisher | -6/Lower Caves Hauler-Mutant | -6/Data Miner Hauler-Mutant | -5/Proximity Caves Hauler-Mutant | -5/Factory Hauler-Mutant | -5/Extension Scavenger-Mutant | -4/Factory Hauler-Gunner | -3/Research Mutant | -3/Armory Hacker-Mutant | -3/Lab Hacker-Mutant | -2/Research Mutant | -2/Garrison Mutant | -2/Research Resources | -11 -10 -10 -9 -9 -9 -8 -8 -7 -7 -7 -6 -6 -6 -6 -6 -5 -5 -5 -4 -3 -3 -3 -2 -2 -2 ----------- Run | Scr Mat Min Mat Sto Gar Mat Gar Fac Low Zio Pro Fac Low Low Dat Pro Fac Ext Fac Res Arm Lab Res Gar Res Matter Collected 14636 | 338 464 170 316 1196 724 389 733 430 222 27 150 700 273 423 352 584 2467 1070 442 951 1900 145 75 . 95 Remotely 397 | . . . . . . . . . . . . . . . . . 397 . . . . . . . . Salvage Created 18286 | 163 709 259 354 1404 1091 642 820 1008 58 . 311 578 269 294 99 794 3280 612 878 2171 1900 226 366 . . Parts 854 | 10 41 11 23 91 53 26 35 42 2 . 10 24 5 23 4 19 129 41 32 107 93 11 22 . . Haulers Intercepted 17 | . 2 . 2 6 . 2 . 1 . . . . . . . . 1 . 2 1 . . . . . Recyclers Shooed 21 | 1 3 4 1 1 . . . . . . . 1 . . . . 8 1 . 1 . . . . . Parts Field Recycled . | . . . . . . . . . . . . . . . . . . . . . . . . . . Retrieved Matter . | . . . . . . . . . . . . . . . . . . . . . . . . . . Parts Self-Destructed 51 | . . . . . . . . . 4 . 23 . 3 8 . 13 . . . . . . . . . Prevented 13 | . . . . . . . . . . . . . 1 3 . 9 . . . . . . . . . Kills | -11 -10 -10 -9 -9 -9 -8 -8 -7 -7 -7 -6 -6 -6 -6 -6 -5 -5 -5 -4 -3 -3 -3 -2 -2 -2 ------- Run | Scr Mat Min Mat Sto Gar Mat Gar Fac Low Zio Pro Fac Low Low Dat Pro Fac Ext Fac Res Arm Lab Res Gar Res Combat Hostiles Destroyed 328 | . 8 2 7 39 32 15 18 21 1 . 7 10 2 10 3 8 40 8 13 38 36 3 7 . . Melee 20 | . . . . 1 . . 1 . . . . . . . . . 1 . . . 13 3 1 . . Guns 78 | . 8 2 3 2 6 2 6 4 1 . 3 10 . . . 4 18 . . 3 6 . . . . Cannons 135 | . . . 4 28 20 9 11 8 . . 2 . 2 . . 2 8 8 11 15 2 . 5 . . AOE 80 | . . . . 8 6 3 . 8 . . 2 . . 10 3 1 9 . 2 14 14 . . . . Classes Destroyed 21 | 2 7 1 . 3 . 1 1 1 . . . . 1 2 . . . 1 . . 1 . . . . Worker 16 | . 1 2 . 4 . 1 . 1 . . . 1 . . . . 5 . . 1 . . . . . Builder 12 | . 2 . . 1 . 1 . . . . . . . . . . 4 2 . 2 . . . . . Tunneler 5 | 4 . 1 . . . . . . . . . . . . . . . . . . . . . . . Hauler 17 | . 2 . 2 6 . 2 . 1 . . . . . . . . 1 . 2 1 . . . . . Recycler 16 | 1 3 1 . 1 . . . 2 . . . . . . . . 7 . . 1 . . . . . Minesweeper 2 | . . . . . . . . . . . . . . 1 . 1 . . . . . . . . . Operator 2 | . 1 . . . . . . 1 . . . . . . . . . . . . . . . . . Watcher 11 | . 2 . 1 1 . 1 1 1 . . . . . . . . 1 . . 2 1 . . . . Swarmer 56 | . 2 . 1 10 4 . . 11 . . 1 . . 8 . . . 2 1 10 3 . 3 . . Grunt 140 | . 6 . 3 19 22 9 13 6 . . 4 7 . . . 6 20 2 3 8 9 3 . . . Brawler 18 | . . . . 2 . 1 2 2 1 . . . . . . 2 2 . 2 2 2 . . . . Duelist 12 | . . . . 1 . 1 2 . . . 1 . . . . . 1 . . 1 5 . . . . Protector 4 | . . . . 1 . 1 . . . . . . . . . . . . . 2 . . . . . Researcher 1 | . . . . . . . . . . . . . . 1 . . . . . . . . . . . Sentry 36 | . . 2 3 6 6 2 . . . . . . . . . . 5 2 2 5 3 . . . . Demolisher 1 | . . . . . . . 1 . . . . . . . . . . . . . . . . . . Specialist 4 | . . . . . . . . . . . . . . . . . . . . . 4 . . . . Hunter 16 | . . . . . . . . 1 . . 1 . 2 2 . . 4 . 2 2 2 . . . . Programmer 37 | . . . . . . 1 . 1 . . . 3 . . . . 8 . 3 8 9 . 4 . . Behemoth 2 | . . . . . . . . . . . . . . . . . . 2 . . . . . . . Enhanced Grunt 3 | . . . . . . . . . . . . . . . 3 . . . . . . . . . . Samaritan 1 | . . . . . . . . . . . . . 1 . . . . . . . . . . . . Best Kill Streak 10 | 2 5 1 3 6 7 6 4 10 1 . 3 3 2 4 3 5 6 2 6 9 9 3 3 . . Combat Bots Only 9 | . 5 1 2 6 7 5 4 7 1 . 3 3 2 4 3 5 5 2 6 9 9 3 3 . . Max Kills in Single Turn 5 | 1 1 1 1 4 3 4 1 4 1 . 2 1 1 4 1 1 3 1 1 5 2 1 1 . . Gunslinging 1 | . . . . . . . . 1 . . . . . . . . . . . 1 . . . . . Exploded 5 | . . . . 3 3 3 . 4 . . 2 . . 4 1 1 3 . 1 5 2 . . . . Melee 1 | . . . . 1 . . 1 . . . . . . . . . 1 . . . 1 1 1 . . Uniques/NPCs Destroyed 2 | . . . . . . . . . . . . . . . 1 . . 1 . . . . . . . Data Miner (-6/Data Miner) A7 (-5/Extension) Combat | -11 -10 -10 -9 -9 -9 -8 -8 -7 -7 -7 -6 -6 -6 -6 -6 -5 -5 -5 -4 -3 -3 -3 -2 -2 -2 -------- Run | Scr Mat Min Mat Sto Gar Mat Gar Fac Low Zio Pro Fac Low Low Dat Pro Fac Ext Fac Res Arm Lab Res Gar Res Damage Taken 31290 | . 349 344 280 907 694 1545 1306 537 74 . 269 1406 164 250 374 709 6971 1226 1332 3479 5389 186 2301 658 540 Core 3897 | . 61 14 44 103 70 129 132 143 14 . 40 76 . 50 . 85 756 54 15 248 370 26 590 484 393 Absorbed by Shields 1412 | . . . . 22 . . . 17 . . . . . . . . . 133 . . 115 179 929 . 17 Core Remaining (%) 64 | 100 . 70 . . 45 . 52 . . . 71 . . . . 75 . 19 98 . . 46 . . . Volleys Fired 1341 | 17 96 30 29 96 77 62 59 66 10 . 20 87 11 16 5 32 259 63 47 87 138 . 23 11 . Largest 3 | 2 2 2 2 2 2 2 2 2 2 . 2 2 2 2 1 2 2 2 2 3 2 . 1 1 . Hottest 270 | 40 40 40 78 78 78 128 160 112 45 . 89 50 125 125 50 125 180 180 180 270 218 . 100 100 . Shots Fired 2171 | 34 169 60 58 181 129 111 105 79 12 . 33 110 16 24 5 57 464 97 83 156 156 . 21 11 . Gun 1041 | 34 161 60 13 35 43 47 32 8 4 . 25 98 . 10 . 38 344 . . 15 74 . . . . Cannon 975 | . 8 . 45 137 82 64 73 50 . . 7 . 11 10 . 19 108 72 80 131 47 . 21 10 . Launcher 82 | . . . . 9 4 . . 6 2 . 1 . 5 4 5 . 8 . 2 9 27 . . . . Special 73 | . . . . . . . . 15 6 . . 12 . . . . 4 25 1 1 8 . . 1 . Kinetic 1327 | 34 169 60 58 172 115 97 58 4 2 . 9 81 . . . 35 344 8 . 7 74 . . . . Thermal 532 | . . . . . . 14 47 7 2 . 16 17 . 10 . 3 74 77 80 111 43 . 21 10 . Explosive 74 | . . . . 9 4 . . 6 2 . 1 . 5 4 5 . 8 . 2 9 19 . . . . Electromagnetic 178 | . . . . . 10 . . 47 . . 7 . 11 10 . 19 34 . . 28 12 . . . . Robot Hit Streak 29 | 6 22 9 9 10 29 9 13 11 9 . 9 13 6 15 4 8 23 18 12 21 19 . 12 15 . Robot Miss Streak 9 | 2 4 2 4 3 3 4 4 2 1 . 6 3 1 9 3 5 5 3 3 6 6 . . . . Penetration Max 1 | . . . . . . 1 1 . . . . . . . . . 1 . . . 1 . . . . Secondary Targets 12 | . 1 1 . 1 . . 2 2 . . 1 . . . . . 3 . . 1 . . . . . Max Gunslinging Chain 1 | . 1 1 . 1 . . 1 1 . . 1 . . . . . 1 . . 1 . . . . . Shots Hit Robots 1489 | 23 98 46 36 108 77 64 74 56 8 . 22 84 11 18 5 35 346 65 51 115 119 10 15 3 . Core Hits 853 | 11 37 11 13 65 43 31 34 31 2 . 21 26 12 24 20 20 187 23 27 94 106 6 8 1 . Critical Hits 80 | . 2 . 1 1 2 4 3 . . . 1 . . . . . 4 8 3 13 28 1 9 . . Critical Kills 23 | . . . . . 1 2 . . . . 1 . . . . . 1 2 1 3 8 . 4 . . Critical Parts Destroyed 53 | . 2 . . 1 1 2 2 . . . . . . . . . 3 4 2 10 20 1 5 . . Melee Attacks 110 | . 11 . . . . . 3 . . . . . . 1 1 . 17 3 . . 46 19 9 . . Impact 11 | . 11 . . . . . . . . . . . . . . . . . . . . . . . . Slashing 1 | . . . . . . . . . . . . . . 1 . . . . . . . . . . . Piercing 95 | . . . . . . . . . . . . . . . 1 . 17 3 . . 46 19 9 . . Sneak Attacks 5 | . . . . . . . 1 . . . . . . . 1 . 1 2 . . . . . . . Combat Hostiles . | . . . . . . . . . . . . . . . . . . . . . . . . . . Follow-up Attacks 3 | . . . . . . . . . . . . . . . . . . . . . 1 1 1 . . Damage Inflicted 49245 | 242 1064 458 729 3083 2312 2213 1959 1928 304 . 829 1454 475 1000 798 873 9742 2247 2394 6651 6742 465 1195 88 . Guns 12201 | 242 1064 458 124 395 511 499 567 117 48 . 310 1454 . 135 . 360 5176 . . 251 490 . . . . Cannons 19900 | . . . 605 1686 1262 1268 1369 911 . . 178 . 162 226 . 350 2402 1907 1972 3660 909 . 945 88 . Explosions 14702 | . . . . 1001 539 446 . 900 256 . 341 . 313 639 727 163 1844 . 422 2727 4283 . 101 . . Melee 2238 | . . . . . . . . . . . . . . . 71 . 320 173 . . 1060 465 149 . . Ramming 70 | . . . . 1 . . 23 . . . . . . . . . . 33 . 13 . . . . . Kinetic 16247 | 242 1064 458 729 2081 1536 1447 1121 55 30 . 80 1163 . . . 322 5176 206 . 47 490 . . . . Thermal 13215 | . . . . . 69 766 815 123 18 . 230 291 65 272 . 201 1580 1835 1972 3036 909 . 945 88 . Explosive 13162 | . . . . 1001 470 . . 839 256 . 341 . 248 502 727 . 1766 . 422 2727 3762 . 101 . . Electromagnetic 4313 | . . . . . 237 . . 911 . . 178 . 162 226 . 350 900 . . 828 521 . . . . Impact . | . . . . . . . . . . . . . . . . . . . . . . . . . . Slashing . | . . . . . . . . . . . . . . . . . . . . . . . . . . Piercing 2238 | . . . . . . . . . . . . . . . 71 . 320 173 . . 1060 465 149 . . Highest Corruption 26 | . 1 1 3 3 3 2 2 . . . 1 6 6 . . 3 26 26 9 13 7 4 25 25 25 Average Corruption 7 | . 1 1 2 3 3 1 2 . . . 1 3 3 . . 3 15 14 6 8 3 3 12 25 25 Corruption Purged 52 | . . . . . . . . . . . . . 6 . . . . 18 . 8 13 4 3 . . Effects 679 | . 4 4 1 40 32 . 21 . . . 3 20 15 . . 10 191 181 21 63 24 13 14 17 5 Message Errors 150 | . 2 1 . 7 10 . 10 . . . 3 3 6 . . 3 24 42 7 16 7 4 1 4 . Matter Fused 115 | . . . 1 13 7 . . . . . . 2 4 . . 3 24 35 2 16 2 4 . . 2 Heat Flow Errors 61 | . . . . 3 5 . 3 . . . . 1 4 . . . 11 17 4 5 2 2 1 3 . Energy Discharges 79 | . . 1 . 8 6 . 3 . . . . 4 . . . 2 9 33 3 5 1 . 2 . 2 Parts Rejected 6 | . . . . . . . . . . . . . . . . . 2 1 1 1 . . . 1 . Data Loss (minor) 53 | . 1 1 . 6 2 . 4 . . . . 2 1 . . 1 7 18 . 4 3 3 . . . Data Loss (major) 9 | . . . . . . . . . . . . . . . . . 2 4 . . . . 2 1 . Misfires 12 | . . . . . . . . . . . . 1 . . . . 3 5 . 1 2 . . . . Alerts 8 | . . . . . . . . . . . . . . . . . 4 3 . . . . 1 . . Misdirections 23 | . . . . . . . . . . . . . . . . . 6 7 . . . . 4 5 1 Targeting Errors 133 | . 1 1 . 1 1 . 1 . . . . 6 . . . . 83 15 3 12 5 . 1 3 . Weapon Failures 30 | . . . . 2 1 . . . . . . 1 . . . 1 16 1 1 3 2 . 2 . . Overload Shots 6 | . . . . . . . . . . . . . . 3 . 3 . . . . . . . . . Overflow Damage 1182 | . . . 3 23 10 84 19 145 23 . 3 . 7 27 . 18 63 48 27 355 225 . 102 . . Projectiles 626 | . . . 3 2 10 58 19 35 . . . . 7 27 . 7 56 48 27 203 33 . 91 . . Explosions 554 | . . . . 21 . 26 . 110 23 . 3 . . . . 11 5 . . 152 192 . 11 . . Melee 2 | . . . . . . . . . . . . . . . . . 2 . . . . . . . . Knockbacks 44 | . . . 5 8 8 11 9 . . . . . . . . . . 3 . . . . . . . Impact . | . . . . . . . . . . . . . . . . . . . . . . . . . . Kinetic 40 | . . . 4 8 6 10 9 . . . . . . . . . . 3 . . . . . . . Secondary 4 | . . . 1 . 2 1 . . . . . . . . . . . . . . . . . . . Self-Inflicted Damage 732 | . . . . 41 25 . . 80 . . . . 74 23 . 68 64 16 . 142 145 . 54 . . Shots 23 | . . . . 2 1 . . 2 . . . . 2 1 . 1 3 . . 5 5 . 1 . . Rammed 6 | . . . . . . . 4 . . . . . . . . . . 2 . . . . . . . Targets Rammed 8 | . . . . 1 . . 4 . . . . . . . . . . 2 . 1 . . . . . Kicked . | . . . . . . . . . . . . . . . . . . . . . . . . . . Crushed 2 | . . . . 1 . . . . . . . . . . . . . . . 1 . . . . . Highest Temperature 536 | . 9 9 81 239 260 351 380 147 21 . 120 162 130 63 45 120 314 372 455 405 536 170 124 143 . Average Temperature 73 | . 8 2 31 43 44 82 82 32 11 . 41 14 59 13 24 32 105 89 137 104 96 116 73 29 . Received Heat Transfer 5615 | . 123 99 96 342 291 621 558 111 45 . 24 324 . . 48 243 1650 137 54 234 396 44 24 63 88 Effects 16 | . . . . . . . 5 . . . . . . . . . . 1 2 3 5 . . . . Shutdowns 5 | . . . . . . . 1 . . . . . . . . . . 1 1 1 1 . . . . Energy Bleed 3 | . . . . . . . 2 . . . . . . . . . . . 1 . . . . . . Interference 3 | . . . . . . . . . . . . . . . . . . . . 2 1 . . . . Matter Decay 1 | . . . . . . . 1 . . . . . . . . . . . . . . . . . . Short Circuit 3 | . . . . . . . 1 . . . . . . . . . . . . . 2 . . . . Damage (minor) 1 | . . . . . . . . . . . . . . . . . . . . . 1 . . . . Siege Activations . | . . . . . . . . . . . . . . . . . . . . . . . . . . Robots Corrupted 15 | . . . . . 1 . . 2 . . . . . . . 1 4 . . 6 1 . . . . Combat Hostiles 13 | . . . . . . . . 1 . . . . . . . 1 4 . . 6 1 . . . . Parts Fried 37 | . . . . . 1 . . 7 . . . . . 1 . . 13 . . 10 5 . . . . Impact Corruptions . | . . . . . . . . . . . . . . . . . . . . . . . . . . Robots Melted 2 | . . . . . . 1 . . . . . . . . . . . . . . . . 1 . . Combat Hostiles 2 | . . . . . . 1 . . . . . . . . . . . . . . . . 1 . . Parts Melted 20 | . . . . 1 . 1 2 . 1 . 2 . . . . . 4 1 . 4 . . 4 . . Heat Transferred 11541 | . . . . . 100 800 1600 211 37 . 444 518 50 309 . 150 1278 1358 1250 1883 776 . 703 74 . Parts Sabotaged . | . . . . . . . . . . . . . . . . . . . . . . . . . . Parts Stolen . | . . . . . . . . . . . . . . . . . . . . . . . . . . Parts Stripped . | . . . . . . . . . . . . . . . . . . . . . . . . . . Power Chain Reactions 7 | . . . . . 1 . . 2 . . . . 1 1 . 1 . . . . 1 . . . . Missiles Intercepted . | . . . . . . . . . . . . . . . . . . . . . . . . . . Alert | -11 -10 -10 -9 -9 -9 -8 -8 -7 -7 -7 -6 -6 -6 -6 -6 -5 -5 -5 -4 -3 -3 -3 -2 -2 -2 ------- Run | Scr Mat Min Mat Sto Gar Mat Gar Fac Low Zio Pro Fac Low Low Dat Pro Fac Ext Fac Res Arm Lab Res Gar Res Peak Influence 1566 | 25 273 60 492 906 1408 944 991 593 . . . 127 . . . . 1217 514 640 913 1566 . 155 153 76 Initial 686 | . 16 . . 152 393 686 456 520 . . . . . . . . . 499 148 336 478 . . 97 76 Average 425 | 7 65 17 222 513 1037 702 807 363 . . . 52 . . . . 566 172 268 435 804 . 25 118 76 Maximum Alert Level 4 | . 1 . 2 3 4 3 3 2 . . . . . . . . 4 2 2 3 4 . . . . Low Security (%) 38 | 100 94 100 42 7 . . . 11 . . . 100 . . . . 36 71 43 5 . . 100 100 100 Level 1 16 | . 5 . 46 7 . . . 56 . . . . . . . . . 25 44 47 13 . . . . Level 2 22 | . . . 11 74 13 67 31 32 . . . . . . . . 23 2 12 36 37 . . . . Level 3 15 | . . . . 10 37 32 68 . . . . . . . . . 29 . . 10 22 . . . . Level 4 5 | . . . . . 48 . . . . . . . . . . . 9 . . . 26 . . . . Level 5 . | . . . . . . . . . . . . . . . . . . . . . . . . . . High Security . | . . . . . . . . . . . . . . . . . . . . . . . . . . Max Security . | . . . . . . . . . . . . . . . . . . . . . . . . . . Squads Dispatched 59 | . 2 . 2 12 . 3 . 3 . . . 3 . . . . 13 2 4 6 7 . 2 . . Investigation 8 | . 1 . . 2 . . . . . . . 1 . . . . . 1 2 . 1 . . . . Extermination 17 | . . . . . . . . 1 . . . 2 . . . . 3 . 1 3 5 . 2 . . Reinforcement 15 | . 1 . 2 1 . 1 . 2 . . . . . . . . 5 1 . 1 1 . . . . Assault 9 | . . . . 3 . 1 . . . . . . . . . . 2 . 1 2 . . . . . Garrison 10 | . . . . 6 . 1 . . . . . . . . . . 3 . . . . . . . . Intercept . | . . . . . . . . . . . . . . . . . . . . . . . . . . Construction Impeded 3 | . . . . . . . . . . . . . . . . . 2 . . 1 . . . . . Haulers Reinforced 3 | . . . . . . . . . . . . . . . . . 3 . . . . . . . . Stealth | -11 -10 -10 -9 -9 -9 -8 -8 -7 -7 -7 -6 -6 -6 -6 -6 -5 -5 -5 -4 -3 -3 -3 -2 -2 -2 --------- Run | Scr Mat Min Mat Sto Gar Mat Gar Fac Low Zio Pro Fac Low Low Dat Pro Fac Ext Fac Res Arm Lab Res Gar Res Distress Signals 22 | . 2 . 3 1 . 2 . 2 . . . . . . . . 2 1 1 2 4 . 1 . 1 Communications Jammed 11 | . . . . . . . . . . . . . . . . . . . . . . . 11 . . Distress Signals 11 | . . . . . . . . . . . . . . . . . . . . . . . 11 . . Times Spotted 595 | . 24 2 21 60 31 34 32 31 6 . 12 16 3 9 3 11 69 31 25 56 84 3 18 8 6 Peak Tracking Total 11 | . 6 2 4 10 6 7 4 6 3 . 4 5 3 4 3 4 7 5 6 9 11 3 6 7 9 Tactical Retreats 42 | . . . . 4 3 5 9 . . . 1 2 . . . 2 5 1 . 3 2 . 3 2 . Traps | -11 -10 -10 -9 -9 -9 -8 -8 -7 -7 -7 -6 -6 -6 -6 -6 -5 -5 -5 -4 -3 -3 -3 -2 -2 -2 ------- Run | Scr Mat Min Mat Sto Gar Mat Gar Fac Low Zio Pro Fac Low Low Dat Pro Fac Ext Fac Res Arm Lab Res Gar Res Traps Triggered 42 | . 1 . 2 5 8 . 7 2 . . . 3 . . . . 1 5 3 3 1 . . 1 . Indirectly . | . . . . . . . . . . . . . . . . . . . . . . . . . . Trap Hack Attempts . | . . . . . . . . . . . . . . . . . . . . . . . . . . Triggered . | . . . . . . . . . . . . . . . . . . . . . . . . . . Disarmed . | . . . . . . . . . . . . . . . . . . . . . . . . . . Reprogrammed . | . . . . . . . . . . . . . . . . . . . . . . . . . . Reused 3 | . . . . . . . . . . . . . . . 1 2 . . . . . . . . . Traps Extracted . | . . . . . . . . . . . . . . . . . . . . . . . . . . Installed 6 | . . . . . . . . . . . . . . . 3 2 1 . . . . . . . . Triggered 7 | . . . . . . . . 1 . . . . . . . 6 . . . . . . . . . Machines | -11 -10 -10 -9 -9 -9 -8 -8 -7 -7 -7 -6 -6 -6 -6 -6 -5 -5 -5 -4 -3 -3 -3 -2 -2 -2 ---------- Run | Scr Mat Min Mat Sto Gar Mat Gar Fac Low Zio Pro Fac Low Low Dat Pro Fac Ext Fac Res Arm Lab Res Gar Res Machines Disabled 66 | . 3 . . 8 2 3 4 3 . . . . . . . . 10 4 15 . 9 2 1 2 . Max in Single Turn 13 | . 2 . . 3 1 2 1 1 . . . . . . . . 3 1 13 . 1 1 1 1 . Garrison Access 5 | . . . . . . . . 1 . . . 1 . . . . 1 . 1 1 . . . . . Garrison Relay 7 | . . . . . 2 . 4 . . . . . . . . . . . . . . . . 1 . Machines Sabotaged . | . . . . . . . . . . . . . . . . . . . . . . . . . . Garrisons Compromised . | . . . . . . . . . . . . . . . . . . . . . . . . . . Overloaded Fab Kills . | . . . . . . . . . . . . . . . . . . . . . . . . . . Fab Network Shutdowns 1 | . . . . . . . . . . . . . . . . . 1 . . . . . . . . Hacking | -11 -10 -10 -9 -9 -9 -8 -8 -7 -7 -7 -6 -6 -6 -6 -6 -5 -5 -5 -4 -3 -3 -3 -2 -2 -2 --------- Run | Scr Mat Min Mat Sto Gar Mat Gar Fac Low Zio Pro Fac Low Low Dat Pro Fac Ext Fac Res Arm Lab Res Gar Res Machines Accessed 80 | . 8 . 2 11 . 2 . 10 . . . 5 . . 4 . 9 10 4 2 9 2 2 . . Terminals 52 | . 7 . 2 9 . 1 . 8 . . . 1 . . . . 6 10 2 1 5 . . . . Fabricators 8 | . . . . . . . . 1 . . . 1 . . . . 2 . . . 3 . 1 . . Repair Stations 5 | . 1 . . 1 . . . . . . . 1 . . . . . . 1 . 1 . . . . Recycling Units 1 | . . . . . . . . . . . . 1 . . . . . . . . . . . . . Scanalyzers . | . . . . . . . . . . . . . . . . . . . . . . . . . . Garrison Access 8 | . . . . 1 . 1 . 1 . . . 1 . . . . 1 . 1 1 . . 1 . . Total Hacks 220 | . 25 . 6 32 . 6 . 22 . . . 9 . . 24 . 25 25 11 4 24 3 4 . . Successful 124 | . 16 . 3 18 . 4 . 10 . . . 3 . . 24 . 15 9 5 2 8 3 4 . . Failed 95 | . 8 . 3 14 . 2 . 12 . . . 6 . . . . 10 16 6 2 16 . . . . Catastrophic 26 | . . . 1 4 . 1 . 3 . . . 2 . . . . 5 4 3 1 2 . . . . Database Lockouts 1 | . 1 . . . . . . . . . . . . . . . . . . . . . . . . Manual 84 | . 12 . 5 21 . 5 . 5 . . . 4 . . . . 13 8 3 . 7 . 1 . . Terminals 144 | . 23 . 6 24 . 3 . 18 . . . 1 . . . . 19 25 8 2 15 . . . . Fabricators 18 | . . . . . . . . 2 . . . 2 . . . . 4 . . . 7 . 3 . . Repair Stations 11 | . 2 . . 5 . . . . . . . 1 . . . . . . 1 . 2 . . . . Recycling Units 1 | . . . . . . . . . . . . 1 . . . . . . . . . . . . . Scanalyzers . | . . . . . . . . . . . . . . . . . . . . . . . . . . Garrison Access 19 | . . . . 3 . 3 . 2 . . . 4 . . . . 2 . 2 2 . . 1 . . Terminal Hacks 82 | . 12 . 2 9 . 2 . 7 . . . . . . 24 . 7 9 3 . 4 3 . . . Record 15 | . . . . . . . . 1 . . . . . . 11 . . . . . . 3 . . . Part Schematic 10 | . . . . . . . . 2 . . . . . . 6 . . 2 . . . . . . . Robot Schematic 5 | . . . . . . . . . . . . . . . 4 . 1 . . . . . . . . Robot Analysis 2 | . 1 . . 1 . . . . . . . . . . . . . . . . . . . . . Prototype ID Bank 7 | . 3 . . . . . . . . . . . . . 3 . 1 . . . . . . . . Open Door 7 | . . . . 3 . . . . . . . . . . . . . 4 . . . . . . . Branch Access Points 3 | . . . 1 . . . . . . . . . . . . . 1 . 1 . . . . . . Terminal Index 2 | . 1 . . . . . . . . . . . . . . . . . . . 1 . . . . Fabricator Index 2 | . . . . . . . . . . . . . . . . . 1 . 1 . . . . . . Unreport Threat 9 | . . . . 2 . 2 . . . . . . . . . . 1 2 . . 2 . . . . Locate Traps 7 | . 4 . . 1 . . . 2 . . . . . . . . . . . . . . . . . Recall Investigation 2 | . . . . 1 . . . . . . . . . . . . . . 1 . . . . . . Recall Extermination 1 | . . . . . . . . 1 . . . . . . . . . . . . . . . . . Recall Reinforcements 2 | . . . . . . . . . . . . . . . . . . 1 . . 1 . . . . Hauler Manifests 2 | . 1 . . . . . . 1 . . . . . . . . . . . . . . . . . Registered Components 1 | . 1 . . . . . . . . . . . . . . . . . . . . . . . . Registered Prototypes 1 | . . . . . . . . . . . . . . . . . 1 . . . . . . . . Zone Layout 4 | . 1 . 1 1 . . . . . . . . . . . . 1 . . . . . . . . Fabricator Hacks 9 | . . . . . . . . 1 . . . . . . . . 3 . . . 3 . 2 . . Network Status 1 | . . . . . . . . . . . . . . . . . 1 . . . . . . . . Load Schematic 4 | . . . . . . . . . . . . . . . . . 1 . . . 2 . 1 . . Build 4 | . . . . . . . . 1 . . . . . . . . 1 . . . 1 . 1 . . Repair Station Hacks 6 | . 2 . . 4 . . . . . . . . . . . . . . . . . . . . . Scan Component 3 | . 1 . . 2 . . . . . . . . . . . . . . . . . . . . . Repair 3 | . 1 . . 2 . . . . . . . . . . . . . . . . . . . . . Recycling Unit Hacks . | . . . . . . . . . . . . . . . . . . . . . . . . . . Scanalyzer . | . . . . . . . . . . . . . . . . . . . . . . . . . . Garrison Access Hacks 12 | . . . . 1 . 1 . 2 . . . 2 . . . . 2 . 1 2 . . 1 . . Unlock Access 3 | . . . . 1 . 1 . . . . . . . . . . . . . . . . 1 . . Seal Access 4 | . . . . . . . . 1 . . . 1 . . . . 1 . . 1 . . . . . Coupler Status 5 | . . . . . . . . 1 . . . 1 . . . . 1 . 1 1 . . . . . Unauthorized Hacks 15 | . 2 . 1 4 . 1 . . . . . 1 . . . . 3 . 1 . 1 . 1 . . Terminals 9 | . 2 . 1 4 . . . . . . . . . . . . 2 . . . . . . . . Track 7 | . 1 . 1 4 . . . . . . . . . . . . 1 . . . . . . . . Botnet 1 | . . . . . . . . . . . . . . . . . 1 . . . . . . . . Disrupt 1 | . 1 . . . . . . . . . . . . . . . . . . . . . . . . Fabricators 2 | . . . . . . . . . . . . . . . . . 1 . . . . . 1 . . Prioritize 1 | . . . . . . . . . . . . . . . . . . . . . . . 1 . . Haulers 1 | . . . . . . . . . . . . . . . . . 1 . . . . . . . . Repair Stations 1 | . . . . . . . . . . . . . . . . . . . . . 1 . . . . Mechanics 1 | . . . . . . . . . . . . . . . . . . . . . 1 . . . . Recycling Units 1 | . . . . . . . . . . . . 1 . . . . . . . . . . . . . Tunnel 1 | . . . . . . . . . . . . 1 . . . . . . . . . . . . . Scanalyzers . | . . . . . . . . . . . . . . . . . . . . . . . . . . Garrison Access 2 | . . . . . . 1 . . . . . . . . . . . . 1 . . . . . . Restock 1 | . . . . . . 1 . . . . . . . . . . . . . . . . . . . Eject 1 | . . . . . . . . . . . . . . . . . . . 1 . . . . . . Data Cores Recovered . | . . . . . . . . . . . . . . . . . . . . . . . . . . Used . | . . . . . . . . . . . . . . . . . . . . . . . . . . Hacking Detections 69 | . 7 . 2 11 . 2 . 9 . . . 4 . . . . 9 10 3 1 9 . 2 . . Full Trace Events 8 | . 1 . 1 2 . 1 . . . . . . . . . . . 1 1 . 1 . . . . Feedback Events 1 | . 1 . . . . . . . . . . . . . . . . . . . . . . . . Corruption 1 | . 1 . . . . . . . . . . . . . . . . . . . . . . . . Feedback Blocked . | . . . . . . . . . . . . . . . . . . . . . . . . . . Robot Schematics Acquired 5 | . . . . . . . . . . . . . . . 4 . 1 . . . . . . . . Robots Built . | . . . . . . . . . . . . . . . . . . . . . . . . . . Matter . | . . . . . . . . . . . . . . . . . . . . . . . . . . Time . | . . . . . . . . . . . . . . . . . . . . . . . . . . Total Robot Build Rating . | . . . . . . . . . . . . . . . . . . . . . . . . . . Part Schematics Acquired 10 | . . . . . . . . 2 . . . . . . 6 . . 2 . . . . . . . Parts Built 5 | . . . . . . . . 2 . . . . . . . . 1 . . . 1 . 1 . . Matter 1089 | . . . . . . . . 168 . . . . . . . . 318 . . . 318 . 285 . . Time 343 | . . . . . . . . 42 . . . . . . . . 169 . . . 56 . 76 . . Total Part Build Rating 25 | . . . . . . . . 8 . . . . . . . . 6 . . . 6 . 5 . . Parts Repaired 3 | . 1 . . 2 . . . . . . . . . . . . . . . . . . . . . Time 78 | . 26 . . 52 . . . . . . . . . . . . . . . . . . . . . Parts Recycled . | . . . . . . . . . . . . . . . . . . . . . . . . . . Recycled Matter . | . . . . . . . . . . . . . . . . . . . . . . . . . . Retrieved Matter . | . . . . . . . . . . . . . . . . . . . . . . . . . . Retrieved Components . | . . . . . . . . . . . . . . . . . . . . . . . . . . Parts Scanalyzed . | . . . . . . . . . . . . . . . . . . . . . . . . . . Part Schematics Acquired . | . . . . . . . . . . . . . . . . . . . . . . . . . . Parts Damaged . | . . . . . . . . . . . . . . . . . . . . . . . . . . Bothacking | -11 -10 -10 -9 -9 -9 -8 -8 -7 -7 -7 -6 -6 -6 -6 -6 -5 -5 -5 -4 -3 -3 -3 -2 -2 -2 ------------ Run | Scr Mat Min Mat Sto Gar Mat Gar Fac Low Zio Pro Fac Low Low Dat Pro Fac Ext Fac Res Arm Lab Res Gar Res Used RIF Installer 3 | . . . . . 1 . 1 . . . . . . . . . . . . . . . . 1 . Threat Obfuscator 1 | . . . . . . . . . . . . . . . . . . . . . . . . 1 . Patrol Navigation 1 | . . . . . . . 1 . . . . . . . . . . . . . . . . . . Robots Hacked 23 | . . . . . . . 2 7 3 . . 5 . . . . 1 . 1 1 2 . . 1 . Non-combat 11 | . . . . . . . . 5 . . . 1 . . . . 1 . 1 1 2 . . . . Combat 12 | . . . . . . . 2 2 3 . . 4 . . . . . . . . . . . 1 . Robot Hacks Applied 28 | . . . . . . . 2 9 4 . . 7 . . . . 1 . 1 1 2 . . 1 . find_chute 2 | . . . . . . . . 1 . . . . . . . . 1 . . . . . . . . deconstruct_machine 1 | . . . . . . . . . . . . . . . . . . . 1 . . . . . . drop_inventory 3 | . . . . . . . . 1 . . . 1 . . . . . . . 1 . . . . . locate_stockpiles 1 | . . . . . . . . . . . . 1 . . . . . . . . . . . . . ignore_parts 1 | . . . . . . . . 1 . . . . . . . . . . . . . . . . . purge_threat 2 | . . . . . . . . 1 . . . . . . . . . . . . 1 . . . . summon_haulers 1 | . . . . . . . . 1 . . . . . . . . . . . . . . . . . map_route 1 | . . . . . . . . 1 . . . . . . . . . . . . . . . . . find_garrison 2 | . . . . . . . . 1 . . . 1 . . . . . . . . . . . . . spike_heat 2 | . . . . . . . . . 2 . . . . . . . . . . . . . . . . formatsys_high 12 | . . . . . . . 2 2 2 . . 4 . . . . . . . . 1 . . 1 . Relay Couplers Released 34 | . . . . . 8 4 15 . . . . . . . . . . . 3 1 . . . 3 . Ejected 3 | . . . . . . . . . . . . . . . . . . . 3 . . . . . . Machine Destruction 27 | . . . . . 8 . 15 . . . . . . . . . . . . 1 . . . 3 . Programmers 4 | . . . . . . 4 . . . . . . . . . . . . . . . . . . . Attached 16 | . . . . . . . 2 3 2 . . 4 . . . . . . 1 . 1 . . 3 . Robots Rewired 11 | . . . . . . . . . . . . . . . . . 1 6 . . 4 . . . . Allies Hacked 2 | . . . . . . . . 1 . . . . . . . . . . . . 1 . . . . Hacks Repelled . | . . . . . . . . . . . . . . . . . . . . . . . . . . Allies | -11 -10 -10 -9 -9 -9 -8 -8 -7 -7 -7 -6 -6 -6 -6 -6 -5 -5 -5 -4 -3 -3 -3 -2 -2 -2 -------- Run | Scr Mat Min Mat Sto Gar Mat Gar Fac Low Zio Pro Fac Low Low Dat Pro Fac Ext Fac Res Arm Lab Res Gar Res Total Allies 42 | . . 3 . . . . 2 2 2 . . 4 . . . . 1 9 . . 18 . . 1 . Largest Group 10 | . . 3 3 1 . . 2 2 4 4 4 3 . . . . 1 6 1 . 10 . . 1 . Highest-Rated Group 481 | . . 40 40 16 . . 32 53 99 98 98 36 . . . . 41 202 31 . 481 . . 58 . Highest-Rated Ally 156 | . . 16 16 16 . . 16 32 32 32 32 32 . . . . 41 156 31 . 60 . . 58 . Total Orders 24 | . . . . . . . . 4 . 11 . . 2 . . . . 2 . . 5 . . . . STAY 6 | . . . . . . . . . . 4 . . 1 . . . . 1 . . . . . . . ROAM 1 | . . . . . . . . . . 1 . . . . . . . . . . . . . . . FOLLOW 2 | . . . . . . . . 1 . 1 . . . . . . . . . . . . . . . EXPLORE 5 | . . . . . . . . 2 . 2 . . . . . . . 1 . . . . . . . RETURN 10 | . . . . . . . . 1 . 3 . . 1 . . . . . . . 5 . . . . Ally Attacks 486 | . . . 41 14 . . 9 21 16 . 14 10 . . . . 11 98 6 . 244 . . 2 . Total Damage 10848 | . . . 444 153 . . 117 616 335 . 375 145 . . . . 383 2335 85 . 5770 . . 90 . Kills 87 | . . . 10 3 . . 1 2 3 . 2 . . . . . 4 26 1 . 35 . . . . Allies Corrupted 2 | . . . 1 . . . . . . . . . . . . . . . . . 1 . . . . Allies Melted . | . . . . . . . . . . . . . . . . . . . . . . . . . . Intel | -11 -10 -10 -9 -9 -9 -8 -8 -7 -7 -7 -6 -6 -6 -6 -6 -5 -5 -5 -4 -3 -3 -3 -2 -2 -2 ------- Run | Scr Mat Min Mat Sto Gar Mat Gar Fac Low Zio Pro Fac Low Low Dat Pro Fac Ext Fac Res Arm Lab Res Gar Res Robot Analysis Total 2 | . 1 . . 1 . . . . . . . . . . . . . . . . . . . . . Derelict Logs Recovered 7 | . . 1 . . . . . . 1 . 1 . 2 1 . 1 . . . . . . . . . Drone Launches 21 | . . . . . . . . 3 . 2 . . 1 . . . . 4 . . 11 . . . . Drone Recoveries 15 | . . . . . . . . 3 . 2 . . 1 . . . . 2 . . 7 . . . . Exploration | -11 -10 -10 -9 -9 -9 -8 -8 -7 -7 -7 -6 -6 -6 -6 -6 -5 -5 -5 -4 -3 -3 -3 -2 -2 -2 ------------- Run | Scr Mat Min Mat Sto Gar Mat Gar Fac Low Zio Pro Fac Low Low Dat Pro Fac Ext Fac Res Arm Lab Res Gar Res Turns Passed 34676 | 174 1838 1069 540 1858 1417 729 2383 1904 931 2139 804 862 2000 1557 348 988 2467 4028 913 1931 1887 1016 619 211 63 Spaces Moved 14835 | 75 875 508 235 793 665 326 966 1143 740 229 476 515 804 930 184 489 855 849 389 805 967 249 420 256 92 Core 411 | 8 . . . . . . . . . . . . . . . . . . . . . . 55 256 92 Treads 5562 | 67 875 508 235 793 537 19 849 . . . . . . . . . 5 460 389 805 20 . . . . Legs 3454 | . . . . . . . 60 94 . . . . . . 11 489 850 389 . . 947 249 365 . . Wheels 5408 | . . . . . 128 307 57 1049 740 229 476 515 804 930 173 . . . . . . . . . . Hover . | . . . . . . . . . . . . . . . . . . . . . . . . . . Flight . | . . . . . . . . . . . . . . . . . . . . . . . . . . Fastest Speed 50 | 50 160 180 180 180 130 130 200 120 120 120 120 120 120 120 150 150 150 150 180 180 120 120 50 50 50 Average Speed 154 | 152 168 180 180 181 170 155 209 140 120 120 120 121 120 143 159 171 174 185 180 183 131 120 115 62 57 Slowest Speed 330 | 160 180 180 180 240 200 220 330 210 120 120 130 130 130 160 180 180 280 320 180 200 300 120 150 200 150 Overloaded Moves . | . . . . . . . . . . . . . . . . . . . . . . . . . . Propulsion Burnouts . | . . . . . . . . . . . . . . . . . . . . . . . . . . Robots Hopped . | . . . . . . . . . . . . . . . . . . . . . . . . . . Cave-ins Triggered . | . . . . . . . . . . . . . . . . . . . . . . . . . . Teleports 1 | . . . . . . . . . . . . . . . . . . . . . . 1 . . . Exploration Rate (%) 52 | 5 92 65 34 85 71 22 88 38 61 86 56 11 90 72 77 59 23 71 18 29 60 99 9 47 4 Regions Visited 25 Branch Regions 12 Pre-discovered Areas 3 | . . . . . . . . . 1 . . 1 . . 1 . . . . . . . . . . Known Exits Taken 17 | . . 1 1 1 . 1 . 1 . . . 1 1 1 1 1 1 1 1 1 1 1 1 . . Unknown Exits Taken 5 | 1 1 . . . . . . . 1 1 1 . . . . . . . . . . . . . . Scrap Searched 8 | . . 1 . . . . . . 1 1 1 . 1 3 . . . . . . . . . . . Spaces Dug 152 | . 4 . . . . 1 . 7 . . 25 . . 32 . 1 3 . 9 43 24 . 2 1 . Terrain Destroyed 1080 | . 28 . 1 77 22 78 2 44 21 . 25 . 46 104 26 9 151 14 24 154 235 . 15 4 . Melee 15 | . 4 . . . . . . . . . . . . 1 . . 2 . . . 7 . 1 . . Projectile 145 | . . . 1 10 . 25 2 . . . . . . 3 . 2 20 14 18 33 12 . 1 4 . AOE 920 | . 24 . . 67 22 53 . 44 21 . 25 . 46 100 26 7 129 . 6 121 216 . 13 . . Terrain Rammed . | . . . . . . . . . . . . . . . . . . . . . . . . . . Walls Destroyed . | . . . . . . . . . . . . . . . . . . . . . . . . . . Machines Disabled . | . . . . . . . . . . . . . . . . . . . . . . . . . . Actions | -11 -10 -10 -9 -9 -9 -8 -8 -7 -7 -7 -6 -6 -6 -6 -6 -5 -5 -5 -4 -3 -3 -3 -2 -2 -2 --------- Run | Scr Mat Min Mat Sto Gar Mat Gar Fac Low Zio Pro Fac Low Low Dat Pro Fac Ext Fac Res Arm Lab Res Gar Res Total 24345 | 100 1078 610 300 1033 828 451 1217 1381 769 2093 672 676 1817 1112 227 591 1390 3187 500 1112 1362 933 512 293 101 Wait 6736 | . 33 64 9 68 32 30 93 65 8 1852 167 29 990 129 1 34 112 2125 13 112 78 649 42 1 . Move 14810 | 74 874 507 234 792 664 325 965 1142 739 228 475 514 803 929 183 488 854 848 388 804 966 248 420 254 92 Hop . | . . . . . . . . . . . . . . . . . . . . . . . . . . Pick Up 291 | 2 31 2 6 10 14 13 25 29 2 1 2 13 2 8 10 8 38 20 7 21 27 . . . . Fast Attach 213 | 7 2 1 4 18 2 4 8 9 . 4 . 2 . 5 3 4 24 27 10 16 35 9 10 4 5 Attach 133 | . 2 . 4 4 4 5 10 7 . 1 . 8 3 2 4 6 30 7 4 15 11 . . 5 1 Detach 31 | . 1 . . 3 . . . 2 . 1 . . . . 1 1 7 3 . 4 2 1 1 3 1 Swap 262 | . 8 2 3 13 10 3 12 17 10 1 7 16 6 15 4 10 30 24 17 23 25 3 3 . . Drop 337 | . 20 4 11 27 11 9 20 37 . 5 1 7 2 7 12 6 18 43 14 29 40 7 5 . 2 Fire 1341 | 17 96 30 29 96 77 62 59 66 10 . 20 87 11 16 5 32 259 63 47 87 138 . 23 11 . Melee 99 | . 11 . . . . . 3 . . . . . . 1 1 . 17 3 . . 39 16 8 . . Ram . | . . . . . . . . . . . . . . . . . . . . . . . . . . Kick 2 | . . . . . . . . . . . . . . . . . . 2 . . . . . . . Crush 6 | . . . . 1 . . 4 . . . . . . . . . . . . 1 . . . . . Escape Stasis 77 | . . . . 1 14 . 18 7 . . . . . . . . . 22 . . . . . 15 . Rewire . | . . . . . . . . . . . . . . . . . . . . . . . . . . Trap 6 | . . . . . . . . . . . . . . . 3 2 1 . . . . . . . . Miscellaneous 1 | . . . . . . . . . . . . . . . . . . . . . 1 . . . . Route ------- -11/Scrapyard -10/Materials (discovered 4 exits: *Mat x3 / [*Min]) -10/Mines -9/Materials (discovered 4 exits: *Min x2 / *Sto x2) -9/Storage (discovered 2 exits: *Mat / Gar) -9/Garrison (discovered 2 exits: *Mat x2) -8/Materials -8/Garrison (discovered 3 exits: *Fac x3) -7/Factory (discovered 2 exits: *Fac / *Low) -7/Lower Caves -7/Zion -6/Proximity Caves -6/Factory (discovered 2 exits: *Fac / *Low) -6/Lower Caves -6/Lower Caves (discovered 2 exits: *Fac / *Dat) -6/Data Miner -5/Proximity Caves -5/Factory (discovered 5 exits: *Fac / Upp x2 / *Ext x2) -5/Extension (discovered 3 exits: *Fac x2 / [*Cet]) -4/Factory (discovered 3 exits: *Res / Upp x2) -3/Research -3/Armory -3/Lab -2/Research -2/Garrison -2/Research History --------- Turn | Location | Event 2 | -11/Scrapyard | Met Revision 17 16 | -11/Scrapyard | Discovered new exit (range 15) 175 | -11/Scrapyard | Entered Materials 183 | -10/Materials | Central database locked down 302 | -10/Materials | Build established: Mutant 432 | -10/Materials | Discovered new exit (range 15) 589 | -10/Materials | Discovered new exit (range 5) 1094 | -10/Materials | Repaired Lgt. Treads 1113 | -10/Materials | Discovered new exit (range 13) 1218 | -10/Materials | Discovered new exit (range 15) 1578 | -10/Materials | Build established: Hauler-Mutant 2013 | -10/Materials | Entered Mines 2060 | -10/Mines | Found a hidden stash of uninstalled traps 2275 | -10/Mines | Identified exit to Materials 2291 | -10/Mines | Found a damaged Exp. Sensor Array with a note attached 2295 | -10/Mines | Found Prototype Device 2486 | -10/Mines | Joined a pair of Derelicts in attacking an 0b10 outpost 2942 | -10/Mines | Assisted by bots powering up and referring to "LRC-V3" 3082 | -10/Mines | Entered Materials 3082 | -9/Materials | Accompanied by 3 allies 3082 | -9/Materials | Evolved 2 slots: Propulsion x1, Utility x1 3284 | -9/Materials | Discovered new exit (range 13) 3288 | -9/Materials | Identified exit to Mines 3288 | -9/Materials | Identified exit to Storage 3622 | -9/Materials | Entered Storage 3622 | -9/Storage | Accompanied by 1 ally 3829 | -9/Storage | Garrison activated, responded to threat 3946 | -9/Storage | Garrison activated, responded to threat 4117 | -9/Storage | Found Prototype Launcher 4117 | -9/Storage | Identified Gui. Missile Launcher 4205 | -9/Storage | Repaired Lgt. Treads 4233 | -9/Storage | Repaired Lgt. Treads 4712 | -9/Storage | Discovered new exit (range 16) 4950 | -9/Storage | Garrison activated, responded to threat 5222 | -9/Storage | First assault squad dispatched 5247 | -9/Storage | Garrison activated, responded to threat 5365 | -9/Storage | Identified exit to Garrison 5480 | -9/Storage | Entered Garrison 5638 | -9/Garrison | Triggered checkpoint 5639 | -9/Garrison | Triggered checkpoint 5713 | -9/Garrison | Destroyed 7 combat bots 5796 | -9/Garrison | Triggered checkpoint 5859 | -9/Garrison | Discovered new exit (range 8) 6114 | -9/Garrison | Discovered new exit (range 14) 6147 | -9/Garrison | Installed Relay Interface Framework 6190 | -9/Garrison | Triggered checkpoint 6236 | -9/Garrison | Garrison Relay disabled 6538 | -9/Garrison | Garrison Relay disabled 6580 | -9/Garrison | Triggered checkpoint 6598 | -9/Garrison | Triggered checkpoint 6610 | -9/Garrison | Core integrity fell below 50% 6636 | -9/Garrison | Triggered checkpoint 6897 | -9/Garrison | Entered Materials 6897 | -8/Materials | Evolved 2 slots: Utility x2 7297 | -8/Materials | First assault squad dispatched 7412 | -8/Materials | Garrison activated, responded to threat 7530 | -8/Materials | Identified exit to Garrison 7626 | -8/Materials | Entered Garrison 7648 | -8/Garrison | Lost 3 parts (1n1u1w) 7684 | -8/Garrison | Triggered checkpoint 7764 | -8/Garrison | Triggered checkpoint 7794 | -8/Garrison | Garrison Relay disabled 7872 | -8/Garrison | Triggered checkpoint 7924 | -8/Garrison | Lost 3 parts (1n1u1w) 8002 | -8/Garrison | Discovered new exit (range 13) 8102 | -8/Garrison | Triggered checkpoint 8103 | -8/Garrison | Build established: Bothacker-Mutant 8182 | -8/Garrison | Triggered checkpoint 8276 | -8/Garrison | Discovered new exit (range 10) 8306 | -8/Garrison | Expanded RIF knowledge: Watcher Feeds 8358 | -8/Garrison | Triggered checkpoint 8418 | -8/Garrison | Garrison Relay disabled 8566 | -8/Garrison | Triggered checkpoint 8697 | -8/Garrison | Discovered new exit (range 11) 8744 | -8/Garrison | Triggered checkpoint 8769 | -8/Garrison | Garrison Relay disabled 9184 | -8/Garrison | Triggered checkpoint 9237 | -8/Garrison | Garrison Relay disabled 10009 | -8/Garrison | Entered Factory 10009 | -7/Factory | Evolved 2 slots: Propulsion x1, Utility x1 10325 | -7/Factory | Fabricated Imp. Shield Generator? 10786 | -7/Factory | Identified Exp. Sensor Array 11584 | -7/Factory | Discovered new exit (range 34) 11673 | -7/Factory | Destroyed 7 combat bots 11774 | -7/Factory | Discovered new exit (range 11) 11831 | -7/Factory | Identified exit to Lower Caves 11913 | -7/Factory | Entered Lower Caves 11913 | -7/Lower Caves | Accompanied by 2 allies 12796 | -7/Lower Caves | A Derelict revealed a hidden shortcut to a safe place 12844 | -7/Lower Caves | Entered Zion 12844 | -7/Zion | Accompanied by 4 allies 12895 | -7/Zion | Discovered new exit (range 14) 12923 | -7/Zion | Found Prototype Device 12923 | -7/Zion | Identified Phasing AFG 13005 | -7/Zion | Found Prototype Launcher 13005 | -7/Zion | Identified Rocket Array 13222 | -7/Zion | Build established: Hauler-Mutant 14983 | -7/Zion | Entered Proximity Caves 14983 | -6/Proximity Caves | Accompanied by 4 allies 14985 | -6/Proximity Caves | Attracted the attention of an 0b10 checkpoint 15134 | -6/Proximity Caves | P-60 Hacker assimilated allied Trooper 4a 15534 | -6/Proximity Caves | Discovered new exit (range 15) 15655 | -6/Proximity Caves | Received a Behemoth hack from an annoying Tinkerer 15787 | -6/Proximity Caves | Entered Factory 15787 | -6/Factory | Evolved 2 slots: Utility x2 15788 | -6/Factory | Identified exit to Lower Caves 16037 | -6/Factory | Discovered new exit (range 12) 16096 | -6/Factory | Identified exit to Factory 16167 | -6/Factory | Found Scatter Rocket Array 16170 | -6/Factory | Found Exp. Signal Interpreter 16209 | -6/Factory | Found Scatter Rocket Array 16649 | -6/Factory | Entered Lower Caves 18114 | -6/Lower Caves | Learned 4 Factory zone layouts 18171 | -6/Lower Caves | Encountered a Warlord checkpoint 18437 | -6/Lower Caves | Discovered new exit (range 8) 18648 | -6/Lower Caves | Identified exit to Lower Caves 18649 | -6/Lower Caves | Entered another Lower Caves area 18678 | -6/Lower Caves | Discovered exit to Factory (range 11) 19121 | -6/Lower Caves | Encountered a Warlord checkpoint 19365 | -6/Lower Caves | Identified exit to Data Miner 19376 | -6/Lower Caves | Found Alien Artifact 19376 | -6/Lower Caves | Identified Core Expander 19376 | -6/Lower Caves | Installed Core Expander, added new Power slot 19900 | -6/Lower Caves | Build established: Hauler-Skirmisher 20206 | -6/Lower Caves | Entered Data Miner 20206 | -6/Data Miner | Discovered new exit (range 6) 20213 | -6/Data Miner | Identified exit to Proximity Caves 20256 | -6/Data Miner | Met Data Miner 20284 | -6/Data Miner | Learned location of Section 7 (-3) 20284 | -6/Data Miner | Acquired the access code to Warlord's prototype stash 20309 | -6/Data Miner | Received God Mode back door access code from Data Miner 20424 | -6/Data Miner | Build established: Hauler-Mutant 20454 | -6/Data Miner | Destroyed Data Miner 20456 | -6/Data Miner | Data Conduit disabled 20458 | -6/Data Miner | Found Prototype Hackware 20463 | -6/Data Miner | Found Prototype Hackware 20465 | -6/Data Miner | Found Prototype Hackware 20554 | -6/Data Miner | Entered Proximity Caves 20873 | -5/Proximity Caves | Build established: Hauler-Skirmisher 21099 | -5/Proximity Caves | Lost 3 parts (1n2w) 21358 | -5/Proximity Caves | Build established: Hauler-Mutant 21492 | -5/Proximity Caves | Discovered exit to Factory (range 5) 21542 | -5/Proximity Caves | Entered Factory 21542 | -5/Factory | Evolved 2 slots: Utility x2 21543 | -5/Factory | Identified exit to Upper Caves 21656 | -5/Factory | Discovered new exit (range 21) 21689 | -5/Factory | Identified exit to Factory 21740 | -5/Factory | Fabricated Combat Drone Bay? 21930 | -5/Factory | Identified exit to Extension 22095 | -5/Factory | System corruption reached 10% 22148 | -5/Factory | Lost 6 parts (2p1n3u) 22452 | -5/Factory | Local fabrication network quarantined 22457 | -5/Factory | Identified Quantum Router 22458 | -5/Factory | Identified Deep Network Scanner 22459 | -5/Factory | Identified System Mapper 22751 | -5/Factory | Build established: Wizard-Mutant 22936 | -5/Factory | Lost 3 parts (2p1w) 23044 | -5/Factory | Garrison activated, responded to threat 23121 | -5/Factory | Lost 5 parts (1p2u2w) 23184 | -5/Factory | Core integrity fell below 50% 23237 | -5/Factory | Lost 3 parts (2n1w) 23308 | -5/Factory | Found Exp. Signal Interpreter 23334 | -5/Factory | Build established: Hacker-Mutant 23342 | -5/Factory | First assault squad dispatched 23353 | -5/Factory | Spotted B-75 Beast 23441 | -5/Factory | Lost 3 parts (1n1u1w) 23551 | -5/Factory | Lost 6 parts (1p1n2u2w) 23696 | -5/Factory | Lost 4 parts (1p2u1w) 24009 | -5/Factory | Entered Extension 24018 | -5/Extension | Disrupted transfer network 24174 | -5/Extension | Build established: Scavenger-Mutant 24581 | -5/Extension | Build established: Hauler-Mutant 24647 | -5/Extension | Rescued a captive Derelict 26614 | -5/Extension | Rescued A7 27217 | -5/Extension | Build established: Scavenger-Mutant 27255 | -5/Extension | Spotted B-75 Beast 27266 | -5/Extension | Destroyed B-75 Beast 27281 | -5/Extension | Spotted B-75 Beast 27292 | -5/Extension | Core integrity fell below 20% 27312 | -5/Extension | Destroyed B-75 Beast 27336 | -5/Extension | Lost 3 parts (1n1u1w) 27554 | -5/Extension | Rescued a captive Derelict 27679 | -5/Extension | Discovered exit to Factory (range 3) 27845 | -5/Extension | Discovered exit to Factory (range 16) 27845 | -5/Extension | Discovered new exit (range 16) 27938 | -5/Extension | Destroyed A7 27939 | -5/Extension | Extracted ID and sensor layout for unrecognized location from A7's data core 27961 | -5/Extension | Found Prototype Protection 27961 | -5/Extension | Identified Med. Regenerative Plating 28037 | -5/Extension | Entered Factory 28037 | -4/Factory | Accompanied by 1 ally 28037 | -4/Factory | Evolved 2 slots: Utility x2 28098 | -4/Factory | Identified exit to Upper Caves 28726 | -4/Factory | Found Exp. Targeting Computer 28853 | -4/Factory | Discovered new exit (range 7) 28949 | -4/Factory | Identified exit to Research 28950 | -4/Factory | Entered Research 28950 | -3/Research | Evolved 2 slots: Utility x1, Weapon x1 29254 | -3/Research | Build established: Hauler-Gunner 29300 | -3/Research | Found Launcher Loader 29467 | -3/Research | Lost 3 parts (1n2u) 29854 | -3/Research | System corruption reached 10% 30335 | -3/Research | Lost 3 parts (2u1w) 30341 | -3/Research | Destroyed 9 combat bots 30450 | -3/Research | First assault squad dispatched 30455 | -3/Research | Build established: Hauler-Mutant 30509 | -3/Research | Found Prototype Hackware 30751 | -3/Research | Discovered new exit (range 7) 30792 | -3/Research | Identified exit to Armory 30881 | -3/Research | Entered Armory 31113 | -3/Armory | Assisted by bots powering up and referring to "LRC-V3" 31149 | -3/Armory | Found Unknown Launcher 31149 | -3/Armory | Identified Fusion Bomb Launcher 31208 | -3/Armory | P-80 Master assimilated allied Veteran 8h 31218 | -3/Armory | P-80 Master assimilated allied Veteran 8a 31340 | -3/Armory | Found Enh. Force Lance 31343 | -3/Armory | Found Enh. Force Lance 31344 | -3/Armory | Allied Derelicts emerged from ambush trap array 31357 | -3/Armory | Identified Exp. Hacking Suite 31569 | -3/Armory | Lost 7 parts (1p4u2w) 31581 | -3/Armory | Destroyed 9 combat bots 31662 | -3/Armory | Lost 3 parts (3u) 31744 | -3/Armory | Found Fusion Bomb Launcher 31746 | -3/Armory | Found Fusion Bomb Launcher 31881 | -3/Armory | Found Unknown Launcher 31881 | -3/Armory | Identified Gamma Bomb Array 31884 | -3/Armory | Found Gamma Bomb Array 31916 | -3/Armory | Fabricated Combat Drone Bay (x1) 32113 | -3/Armory | Build established: Mutant 32173 | -3/Armory | Found Fusion Bomb Launcher 32619 | -3/Armory | Lost 3 parts (2u1w) 32714 | -3/Armory | Discovered new exit (range 4) 32766 | -3/Armory | Identified exit to Lab 32768 | -3/Armory | Entered Lab 32768 | -3/Lab | Discovered new exit (range 9) 32777 | -3/Lab | Identified exit to Research 32782 | -3/Lab | Hidden lab's door opened automatically 32782 | -3/Lab | Sensor layout match revealed 32783 | -3/Lab | Gained access to the hidden lab's interior 32783 | -3/Lab | Unable to decrypt terminal 32788 | -3/Lab | Unable to decrypt terminal 32820 | -3/Lab | Found Prototype Special Weapon 32820 | -3/Lab | Identified Gui. Remote Datajack 32837 | -3/Lab | Unable to decrypt terminal 32859 | -3/Lab | Found Deep Network Scanner 32863 | -3/Lab | Found Prototype Device 32863 | -3/Lab | Identified AEGIS Remote Shield 32867 | -3/Lab | Found Prototype Energy Gun 32867 | -3/Lab | Identified Tachyon Dispersion Ray 32872 | -3/Lab | Found Prototype Energy Cannon 32872 | -3/Lab | Identified Warp Cannon 32907 | -3/Lab | Found Alien Artifact 32907 | -3/Lab | Identified Integrated Reactor 32907 | -3/Lab | Installed Integrated Reactor, increased core energy generation (+10) 32916 | -3/Lab | Found Alien Artifact 32916 | -3/Lab | Identified Transdimensional Reconstructor 32916 | -3/Lab | Warped through subspace 32917 | -3/Lab | Core integrity fell below 50% 33158 | -3/Lab | Build established: Hacker-Mutant 33718 | -3/Lab | Disabled Active System Cloaker 33724 | -3/Lab | MAIN.C forces arrive to investigate 33784 | -3/Lab | Entered Research 33784 | -2/Research | Evolved 2 slots: Utility x2 34042 | -2/Research | Spotted B-90 Cyclops 34098 | -2/Research | Fabricated Exp. Sensor Array (x1) 34151 | -2/Research | System corruption reached 10% 34184 | -2/Research | Lost 3 parts (1n2u) 34371 | -2/Research | Released all parts (19) 34403 | -2/Research | Identified exit to Garrison 34403 | -2/Research | Entered Garrison 34406 | -2/Garrison | Expanded RIF knowledge: Threat Obfuscation 34420 | -2/Garrison | Lost 4 parts (2p1n1u) 34503 | -2/Garrison | Garrison Relay disabled 34520 | -2/Garrison | Triggered checkpoint 34534 | -2/Garrison | Core integrity fell below 50% 34550 | -2/Garrison | Triggered checkpoint 34582 | -2/Garrison | Triggered checkpoint 34582 | -2/Garrison | Spotted B-90 Cyclops 34610 | -2/Garrison | Discovered new exit (range 8) 34614 | -2/Garrison | Entered Research 34646 | -2/Research | Spotted B-90 Cyclops 34652 | -2/Research | Core integrity fell below 20% 34677 | -2/Research | Destroyed by G-73 Enforcer with Phase Gun Last Messages --------------- RIF authorized. LOCATION=UNKNOWN GOAL=ESCAPE 34621_ System corrupted: Energy discharge (-36). 34623_ Acquired Unknown Device. 34623_ Identified Imp. Force Field. 34624_ Dropped Imp. Force Field. 34627_ Acquired Imp. Stasis Canceller. 34632_ Acquired System Shield. 34634_ Acquired Adv. Myomer Leg. 34641_ System corrupted: Matter fused (-10). 34648_ Terminal disabled. 34659_ Acquired Unknown Device. 34659_ Identified Imp. Remote Shield. 34660_ System corrupted: Energy discharge (-30). 34671_ Dropped Imp. Remote Shield. 34673_ C-30 ARC bursts open, deploying its payload. 34673_ G-73 Enforcer unfolds itself. 34673_ Acquired 95 matter. 34677_ System corrupted: Matter fused (-6). Map ----- +----------------------------------------------------+ | ?????????????????????????????????????????????????? | | ?????????????????????????????????????????????????? | | ?????????????????????????????????????????????????? | | ?????????????????????????????????????????????????? | | ?????????????????????????????????????????????????? | | ?????????????????????????????????????????????????? | | ?????????????????????????????????????????????????? | | ?????????????????????????????????????????????????? | | ?????????????????????????????????????????????????? | | ?????????????????????????????????????????????????? | | ???????????????????????? ?????????????????????? | | ???????????????????????? #????????????????????? | | ???????????????????????# #????????????????????? | | ???????????????????????# #????????????????????? | | ???????????????????????+ #????????????????????? | | ???????????????????????# #????????????????????? | | ???????????????????????# #????????????????????? | | ???????????????????????# #????????????????????? | | ???????????????????????# #????????????????????? | | ???????????????????????# #????????????????????? | | ???????????????????????# +????????????????????? | | ???????????????????????# #????????????????????? | | ???????????????????????# #????????????????????? | | ???????????????????????# #????????????????????? | | ???????????????????????# #????????????????????? | | ???????????????????????# @ #????????????????????? | | ???????????????????????# ###########??????????? | | ??????????????########## # #??????????? | | ??????????????# # + #??????????? | | ??????????????#!! # # #??????????? | | ??????????????#!! # # !#??????????? | | ??????????????#!! # g #? #??????????? | | ??????????????# # #? ! #??????????? | | ??????????????# # g #?? #??????????? | | ??????????????# #gg #?? #??????????? | | ??????????????# ! g #???#######??????????? | | ??????????????# # #????????????????????? | | ??????????????########## #????????????????????? | | ????????????############A #????????????????????? | | ??????????? #????????????????????? | | ??????????? #????????????????????? | | ??????????? #????????????????????? | | ?????????? #????????????????????? | | ?????????? "#????????????????????? | | ?????????? ""#????????????????????? | | ?????????? ""#????????????????????? | | ?????????? ""#????????????????????? | | ??????????? """"^ ""#????????????????????? | | ??????????????""" "#????????????????????? | | ??????????????""" ""#????????????????????? | +----------------------------------------------------+ Best States ------------- Heat Dissipation 125 Energy Generation 51 Energy Capacity 620 Matter Stores 700 Matter Capacity 700 Sight Range 16 Robot Scan Range 30 Terrain Scan Range 24 Terrain Scan Density 210 ECM Strength 3 Jamming Range 16 Additional Mass Support 16 Corruption Prevention 20 Armor Coverage 825 Resistance: KI 30 Resistance: TH 25 Core Shielding 30 Phase Shifting 5 Evasion (%) 50 Targeting Accuracy 28 Target Analysis 8 Core Analysis 8 Armor Integrity Analysis 50 Recoil Reduction 6 Kinecelleration 30 Offensive Hacking 45 Defensive Hacking 25 Relay Coupler Types 71 Relay Coupler Value 3 Item Schematics ----------------- Imp. System Shield | -7/Factory | Hacked System Restoration Module | -7/Factory | Hacked Mni. Smartbomb Launcher | -6/Data Miner | Free Exp. Targeting Computer | -6/Data Miner | Free Exp. Sensor Array | -6/Data Miner | Free Exp. Flexi-carbon Leg | -6/Data Miner | Free Lgt. Regenerative Plating | -6/Data Miner | Free Combat Drone Bay | -6/Data Miner | Free Hvy. Treads | -5/Extension | Hacked Cmb. Airjet | -5/Extension | Hacked Robot Schematics ------------------ I-47 Archangel | -6/Data Miner | Free I-36 Angel | -6/Data Miner | Free S-27 Virus | -6/Data Miner | Free G-50 Soldier | -6/Data Miner | Free P-70 Sage | -5/Factory | Hacked Fabricated ------------ Imp. Shield Generator | x2 | -7/Factory | Preloaded Combat Drone Bay | x1 | -5/Factory Combat Drone Bay | x1 | -3/Armory Exp. Sensor Array | x1 | -2/Research Alien Tech Used ----------------- Core Expander Integrated Reactor Transdimensional Reconstructor Achievements -------------- None Challenges ------------ None Game ------ Seed WeaponArcInterpreter Manual? 0 Play Time 03:51:49 Cumulative 494.2 hours Start 2020.09.17 @ 07:56:27 End 2020.09.17 @ 12:10:38 Sessions 1 Manual Loads 0 Difficulty Rogue Special Mode None Game No. 320 Rogue 320 Adventurer 0 Explorer 0 Win Type - Total 6 Types 4/0/1/0/1/0/0/0/0 Lore% 84 Gallery% 87 Achievement% 69 Wizard Run 0 Options --------- ASCII 0 Keyboard 0 Movement Mouse Keybinds 1 Fullscreen 2 Font 24/Smallcaps Map View 68x50 Tactical HUD 1 Map Filters NONE Filters NONE Steam 1 RUN: 648337d2-728d-4a9a-8043-117c99c82315